fUST/lending_fUST_20260118
["ID","MTS","AMOUNT","RATE_DAILY","PERIOD"]
[402418170,1768674511681,5000.0,8.931e-05,2]
[402418171,1768674535450,5000.0,8.931e-05,2]
[402418173,1768674558803,5000.0,8.931e-05,2]
[402418174,1768674582143,5000.0,8.931e-05,2]
[402418175,1768674605230,5000.0,8.931e-05,2]
[402418176,1768674628959,5000.0,8.931e-05,2]
[402418243,1768674638582,-184.57620257,9.078e-05,2]
[402418245,1768674638593,-172.98,9.126e-05,2]
[402418247,1768674638603,-197.69,9.464e-05,2]
[402418249,1768674638613,-222.4,9.802e-05,2]
[402418251,1768674638623,-247.11,0.0001014,2]
[402418253,1768674638634,-217.79991903,0.00011078,2]
[402418255,1768674638643,-251.02363549,0.00013078,2]
[402418257,1768674638653,-162.03137828,0.00013697,2]
[402418259,1768674638663,-500.0,0.00013697,2]
[402418261,1768674638673,-500.0,0.00013697,2]
[402418263,1768674638682,-500.0,0.00013697,2]
[402418265,1768674638691,-500.0,0.00013697,2]
[402418267,1768674638700,-484.79578238,0.00013697,2]
[402418269,1768674638709,-414.268,0.00013697,2]
[402418271,1768674638722,-500.0,0.00013698,2]
[402418273,1768674638732,-500.0,0.00013698,2]
[402418275,1768674638742,-500.0,0.00013698,2]
[402418277,1768674638752,-500.0,0.00013698,2]
[402418279,1768674638762,-500.0,0.00013698,2]
[402418281,1768674638772,-500.0,0.00013698,2]
[402418283,1768674638782,-500.0,0.00013698,2]
[402418285,1768674638792,-500.0,0.00013698,2]
[402418287,1768674638805,-500.0,0.00013698,2]
[402418289,1768674638815,-500.0,0.00013698,2]
[402418291,1768674638824,-500.0,0.00013698,2]
[402418293,1768674638835,-500.0,0.00013698,2]
[402418295,1768674638845,-500.0,0.00013698,2]
[402418297,1768674638855,-500.0,0.00013698,2]
[402418299,1768674638866,-500.0,0.00013698,2]
[402418301,1768674638876,-500.0,0.00013698,2]
[402418303,1768674638887,-500.0,0.00013698,2]
[402418305,1768674638897,-500.0,0.00013698,2]
[402418307,1768674638907,-265.65053515,0.00013698,2]
[402418309,1768674638917,-686.16,0.00013698,2]
[402418311,1768674638927,-390.26121377,0.00013698,2]
[402418314,1768674638948,-295.89878623,0.00013698,2]
[402418316,1768674638958,-686.16,0.00013698,2]
[402418318,1768674638968,-686.16,0.00013698,2]
[402418320,1768674638979,-686.16,0.00013698,2]
[402418322,1768674638988,-686.16,0.00013698,2]
[402418324,1768674638998,-686.16,0.00013698,2]
[402418326,1768674639008,-686.16,0.00013698,2]
[402418328,1768674639019,-686.16,0.00013698,2]
[402418330,1768674639030,-686.16,0.00013698,2]
[402418332,1768674639040,-686.16,0.00013698,2]
[402418334,1768674639051,-686.16,0.00013698,2]
[402418337,1768674639063,-686.16,0.00013698,2]
[402418339,1768674639076,-686.16,0.00013698,2]
[402418341,1768674639086,-686.16,0.00013698,2]
[402418343,1768674639096,-686.16,0.00013698,2]
[402418345,1768674639107,-686.16,0.00013698,2]
[402418347,1768674639117,-686.16,0.00013698,2]
[402418349,1768674639126,-686.16,0.00013698,2]
[402418351,1768674639135,-686.16,0.00013698,2]
[402418353,1768674639145,-686.16,0.00013698,2]
[402418355,1768674639154,-686.16,0.00013698,2]
[402418357,1768674639164,-686.16,0.00013698,2]
[402418359,1768674639174,-686.16,0.00013698,2]
[402418361,1768674639183,-743.22,0.00013698,2]
[402418363,1768674639193,-743.22,0.00013698,2]
[402418365,1768674639203,-743.22,0.00013698,2]
[402418367,1768674639212,-743.22,0.00013698,2]
[402418369,1768674639222,-743.22,0.00013698,2]
[402418371,1768674639231,-743.22,0.00013698,2]
[402418373,1768674639244,-743.22,0.00013698,2]
[402418375,1768674639253,-743.22,0.00013698,2]
[402418377,1768674639262,-743.22,0.00013698,2]
[402418379,1768674639271,-743.22,0.00013698,2]
[402418380,1768674639280,-743.22,0.00013698,2]
[402418383,1768674639290,-743.22,0.00013698,2]
[402418385,1768674639300,-743.22,0.00013698,2]
[402418387,1768674639310,-743.22,0.00013698,2]
[402418389,1768674639320,-743.22,0.00013698,2]
[402418391,1768674639329,-743.22,0.00013698,2]
[402418393,1768674639339,-743.22,0.00013698,2]
[402418395,1768674639348,-743.22,0.00013698,2]
[402418397,1768674639358,-743.22,0.00013698,2]
[402418399,1768674639367,-743.22,0.00013698,2]
[402418401,1768674639376,-743.22,0.00013698,2]
[402418403,1768674639385,-743.22,0.00013698,2]
[402418405,1768674639395,-743.22,0.00013698,2]
[402418407,1768674639404,-743.22,0.00013698,2]
[402418409,1768674639413,-2942.48,0.00013698,2]
[402418411,1768674639423,-2942.48,0.00013698,2]
[402418413,1768674639432,-2942.48,0.00013698,2]
[402418415,1768674639442,-2942.48,0.00013698,2]
[402418417,1768674639452,-2942.48,0.00013698,2]
[402418419,1768674639461,-1903.0,0.00013698,2]
[402418420,1768674639473,-1903.0,0.00013698,2]
[402418422,1768674639482,-1903.0,0.00013698,2]
[402418424,1768674639491,-1903.0,0.00013698,2]
[402418426,1768674639500,-1903.0,0.00013698,2]
[402418428,1768674639510,-500.0,0.00013698,2]
[402418430,1768674639520,-500.0,0.00013698,2]
[402418433,1768674639529,-500.0,0.00013698,2]
[402418434,1768674639539,-500.0,0.00013698,2]
[402418436,1768674639548,-500.0,0.00013698,2]
[402418437,1768674639557,-500.0,0.00013698,2]
[402418438,1768674639567,-1000.0,0.00013699,2]
[402418439,1768674639576,-2150.738,0.00014772,2]
[402418440,1768674639586,-284.24735195,0.00015078,2]
[402418441,1768674639596,-500.0,0.00015274,2]
[402418442,1768674639605,-2230.315306,0.0001532,2]
[402418443,1768674639615,-2312.83697232,0.00015868,2]
[402418444,1768674639624,-602.5013427,0.0001589,2]
[402418445,1768674639635,-445.202766,0.0001598,2]
[402418446,1768674639644,-162.380719,0.0001598,2]
[402418447,1768674639654,-168.3888056,0.0001598,2]
[402418448,1768674639664,-174.61919141,0.0001598,2]
[402418449,1768674639674,-181.08010149,0.0001598,2]
[402418450,1768674639683,-187.78006525,0.0001598,2]
[402418451,1768674639692,-194.72792766,0.0001598,2]
[402418452,1768674639702,-201.93286099,0.0001598,2]
[402418453,1768674639711,-209.40437684,0.0001598,2]
[402418454,1768674639720,-217.15233878,0.0001598,2]
[402418455,1768674639729,-225.18697532,0.0001598,2]
[402418456,1768674639750,-233.51889341,0.0001598,2]
[402418457,1768674639761,-242.15909246,0.0001598,2]
[402418458,1768674639771,-251.11897888,0.0001598,2]
[402418459,1768674639780,-260.4103811,0.0001598,2]
[402418460,1768674639790,-270.0455652,0.0001598,2]
[402418461,1768674639800,-280.03725112,0.0001598,2]
[402418462,1768674639810,-290.39862941,0.0001598,2]
[402418463,1768674639819,-301.1433787,0.0001598,2]
[402418464,1768674639830,-5042.19085868,0.00015989,2]
[402418465,1768674639840,-451.43960161,0.00015989,2]
[402418467,1768674639850,-500.0,0.00015989,2]
[402418469,1768674639859,-180.9115193,0.00015989,2]
[402418471,1768674639869,-500.0,0.00015989,2]
[402418473,1768674639879,-100000.0,0.0001599,2]
[402418475,1768674639888,-1263.49040081,0.00016326,2]
[402418477,1768674639898,-2942.48,0.00016337,2]
[402418480,1768674639909,-2942.48,0.00016337,2]
[402418482,1768674639919,-2942.48,0.00016337,2]
[402418484,1768674639929,-2942.48,0.00016337,2]
[402418486,1768674639940,-2942.48,0.00016337,2]
[402418488,1768674639949,-2942.48,0.00016337,2]
[402418489,1768674639958,-2942.48,0.00016337,2]
[402418491,1768674639967,-2942.48,0.00016337,2]
[402418493,1768674639977,-2942.48,0.00016337,2]
[402418495,1768674639988,-2942.48,0.00016337,2]
[402418497,1768674639999,-2942.48,0.00016337,2]
[402418499,1768674640009,-2942.48,0.00016337,2]
[402418501,1768674640019,-2942.48,0.00016337,2]
[402418503,1768674640029,-2942.48,0.00016337,2]
[402418505,1768674640039,-2942.48,0.00016337,2]
[402418507,1768674640050,-2942.48,0.00016337,2]
[402418509,1768674640059,-2942.48,0.00016337,2]
[402418511,1768674640069,-2942.48,0.00016337,2]
[402418513,1768674640079,-2942.69585434,0.00016337,2]
[402418515,1768674640089,-1903.0,0.00016337,2]
[402418517,1768674640100,-1903.0,0.00016337,2]
[402418519,1768674640110,-1903.0,0.00016337,2]
[402418521,1768674640120,-1903.0,0.00016337,2]
[402418523,1768674640130,-1903.0,0.00016337,2]
[402418525,1768674640140,-1903.0,0.00016337,2]
[402418527,1768674640150,-1903.0,0.00016337,2]
[402418529,1768674640160,-1903.0,0.00016337,2]
[402418532,1768674640170,-1903.0,0.00016337,2]
[402418534,1768674640180,-1903.0,0.00016337,2]
[402418536,1768674640190,-1903.0,0.00016337,2]
[402418538,1768674640200,-1903.0,0.00016337,2]
[402418540,1768674640210,-1903.0,0.00016337,2]
[402418542,1768674640220,-1903.0,0.00016337,2]
[402418544,1768674640230,-1903.0,0.00016337,2]
[402418546,1768674640242,-1903.0,0.00016337,2]
[402418548,1768674640252,-1903.0,0.00016337,2]
[402418550,1768674640262,-1903.0,0.00016337,2]
[402418552,1768674640272,-1903.2,0.00016337,2]
[402418554,1768674640283,-255945.86052001,0.00016338,2]
[402418556,1768674640298,-407.89,0.00016338,2]
[402418559,1768674640318,-119101.21211384,0.00016338,2]
[402418623,1768674640943,-3e-08,0.00016338,2]
[402418625,1768674640959,-919.35239916,0.00016338,2]
[402418627,1768674640971,-9899.74019503,0.00016338,2]
[402418630,1768674640983,-1200.0,0.00016338,2]
[402418898,1768674643652,-6097.03692679,0.00016338,2]
[402418905,1768674643706,-3518.79288172,0.00016338,2]
[402419223,1768674647051,-499696.16637883,0.00016338,2]
[402419229,1768674647092,-4448.16968247,0.00016338,2]
[402422239,1768674682486,186.92963304,0.00022053,120]
[402425876,1768674785375,500.0,0.00027397,120]
[402425891,1768674875324,3249.68714642,0.00027397,120]
[402425893,1768674914913,163.42,0.000164,120]
[402425894,1768674955633,300.0,0.000164,120]
[402425910,1768675092712,500.0,0.00027397,120]
[402425946,1768675400239,500.0,0.00027397,120]
[402425947,1768675706646,937.4014847,0.00027397,120]
[402426094,1768675837817,-5000.0,0.00011845,2]
[402426096,1768675837827,-179.55612335,0.00011965,2]
[402426098,1768675837837,-165.82326039,0.0001227,2]
[402426100,1768675837846,-500.0,0.00013273,2]
[402426102,1768675837856,-331.415,0.00013326,2]
[402426104,1768675837865,-500.0,0.00013597,2]
[402426106,1768675837874,-566.29609953,0.00013597,2]
[402426108,1768675837884,-316.00772113,0.00013597,2]
[402426110,1768675837893,-500.0,0.00013597,2]
[402426112,1768675837902,-500.0,0.00013597,2]
[402426114,1768675837911,-326.63806351,0.00013597,2]
[402426116,1768675837921,-1000000.0,0.00013598,2]
[402426118,1768675837931,-306.22215725,0.00013698,2]
[402426120,1768675837941,-500.0,0.00013698,2]
[402426122,1768675837950,-500.0,0.00013698,2]
[402426124,1768675837959,-500.0,0.00013698,2]
[402426126,1768675837969,-783.59,0.00013698,2]
[402426128,1768675837978,-783.59,0.00013698,2]
[402426130,1768675837987,-783.59,0.00013698,2]
[402426132,1768675837997,-783.59,0.00013698,2]
[402426134,1768675838006,-783.59,0.00013698,2]
[402426136,1768675838016,-783.59,0.00013698,2]
[402426138,1768675838025,-783.59,0.00013698,2]
[402426140,1768675838036,-783.59,0.00013698,2]
[402426142,1768675838045,-783.59,0.00013698,2]
[402426144,1768675838055,-783.59,0.00013698,2]
[402426146,1768675838064,-783.59,0.00013698,2]
[402426148,1768675838074,-783.59,0.00013698,2]
[402426150,1768675838083,-783.59,0.00013698,2]
[402426152,1768675838093,-783.59,0.00013698,2]
[402426154,1768675838102,-783.59,0.00013698,2]
[402426156,1768675838111,-783.59,0.00013698,2]
[402426158,1768675838120,-783.59,0.00013698,2]
[402426160,1768675838130,-783.59,0.00013698,2]
[402426161,1768675838140,-783.59,0.00013698,2]
[402426163,1768675838150,-783.59,0.00013698,2]
[402426165,1768675838159,-783.59,0.00013698,2]
[402426167,1768675838169,-783.59,0.00013698,2]
[402426169,1768675838181,-783.59,0.00013698,2]
[402426171,1768675838191,-783.76755894,0.00013698,2]
[402426173,1768675838200,-341.906626,0.00013699,2]
[402426175,1768675838210,-500.0,0.00013699,2]
[402426177,1768675838219,-1000.0,0.00013821,2]
[402426179,1768675838228,-13235.0,0.00014,2]
[402426181,1768675838239,-90348.55459878,0.00014006,2]
[402426182,1768675838248,-1000.0,0.00014247,2]
[402426183,1768675838325,-195.67144726,0.0001427,2]
[402426184,1768675838335,-500.0,0.00014368,2]
[402426185,1768675838345,-1500.0,0.00014795,2]
[402426186,1768675838355,-151.0,0.00014992,2]
[402426187,1768675838364,-2150.738,0.00014992,2]
[402426188,1768675838374,-445.202766,0.00014992,2]
[402426189,1768675838383,-251.5046784,0.00014992,2]
[402426190,1768675838393,-162.380719,0.00014992,2]
[402426191,1768675838402,-30000.0,0.00014992,2]
[402426192,1768675838411,-168.3888056,0.00014992,2]
[402426193,1768675838421,-174.61919141,0.00014992,2]
[402426194,1768675838430,-181.08010149,0.00014992,2]
[402426195,1768675838445,-187.78006525,0.00014992,2]
[402426196,1768675838455,-194.72792766,0.00014992,2]
[402426197,1768675838464,-201.93286099,0.00014992,2]
[402426198,1768675838474,-209.40437684,0.00014992,2]
[402426199,1768675838483,-217.15233878,0.00014992,2]
[402426200,1768675838493,-225.18697532,0.00014992,2]
[402426201,1768675838506,-233.51889341,0.00014992,2]
[402426202,1768675838518,-242.15909246,0.00014992,2]
[402426203,1768675838528,-251.11897888,0.00014992,2]
[402426204,1768675838538,-260.4103811,0.00014992,2]
[402426205,1768675838547,-270.0455652,0.00014992,2]
[402426206,1768675838557,-235.83546806,0.00014992,2]
[402426207,1768675838566,-500.0,0.00015119,2]
[402426208,1768675838576,-500.0,0.00015249,2]
[402426209,1768675838585,-500.0,0.00015273,2]
[402426210,1768675838595,-230.608912,0.00015435,2]
[402426211,1768675838605,-461.67526834,0.0001554,2]
[402426212,1768675838618,-2230.315306,0.0001554,2]
[402426213,1768675838628,-31110.0,0.0001554,2]
[402426214,1768675838638,-1216.7807319,0.00015616,2]
[402426215,1768675838649,-156.85127801,0.00015982,2]
[402426216,1768675838659,-200.87995542,0.00015989,2]
[402426217,1768675838669,-13761.0,0.00016,2]
[402426218,1768675838679,-478.75725327,0.00016088,2]
[402426219,1768675838689,-2312.83697232,0.00016088,2]
[402426221,1768675838698,-2261.07,0.00016088,2]
[402426223,1768675838708,-844.0,0.00016218,2]
[402426225,1768675838719,-225.51963413,0.0001627,2]
[402426226,1768675838730,-844.0,0.0001629,2]
[402426228,1768675838748,-2084.83,0.000163,2]
[402426230,1768675838762,-733.45841462,0.00016337,2]
[402426233,1768675838779,-391.41597497,0.00016337,2]
[402426234,1768675838789,-1565.66389988,0.00016337,2]
[402426236,1768675838799,-16699.1988129,0.00016338,2]
[402426238,1768675838808,-3549.5398004,0.00016338,2]
[402426240,1768675838817,-224.9414101,0.00016338,2]
[402426242,1768675838827,-3000.0,0.00016428,2]
[402426244,1768675838836,-155.0,0.00016437,2]
[402426245,1768675838846,-180.95,0.00016437,2]
[402426246,1768675838855,-606.47,0.00016438,3]
[402426247,1768675838865,-500.0,0.00016438,3]
[402426248,1768675838875,-500.0,0.00016438,3]
[402426249,1768675838884,-500.0,0.00016438,3]
[402426250,1768675838893,-500.0,0.00016438,3]
[402426251,1768675838903,-500.0,0.00016438,3]
[402426252,1768675838913,-224.22753916,0.00016438,3]
[402426253,1768675838922,-500.0,0.00016438,3]
[402426254,1768675838932,-500.0,0.00016438,3]
[402426255,1768675838942,-500.0,0.00016438,3]
[402426256,1768675838952,-500.0,0.00016438,3]
[402426257,1768675838962,-500.0,0.00016438,3]
[402426258,1768675838972,-500.0,0.00016438,3]
[402426259,1768675838982,-500.0,0.00016438,3]
[402426260,1768675838991,-500.0,0.00016438,3]
[402426261,1768675839001,-500.0,0.00016438,3]
[402426262,1768675839010,-785.35,0.00016438,3]
[402426263,1768675839020,-500.0,0.00016438,3]
[402426264,1768675839029,-500.0,0.00016438,3]
[402426265,1768675839039,-500.0,0.00016438,3]
[402426266,1768675839049,-500.0,0.00016438,3]
[402426267,1768675839059,-500.0,0.00016438,3]
[402426268,1768675839068,-500.0,0.00016438,3]
[402426269,1768675839078,-500.0,0.00016438,3]
[402426270,1768675839088,-500.0,0.00016438,3]
[402426271,1768675839098,-958.0,0.00016438,3]
[402426272,1768675839108,-945.0,0.00016438,3]
[402426273,1768675839118,-541.87987257,0.00016438,3]
[402426274,1768675839129,-500.0,0.00016438,3]
[402426275,1768675839139,-500.0,0.00016438,3]
[402426276,1768675839149,-500.0,0.00016438,3]
[402426277,1768675839158,-500.0,0.00016438,3]
[402426278,1768675839168,-500.0,0.00016438,3]
[402426279,1768675839177,-500.0,0.00016438,3]
[402426280,1768675839186,-500.0,0.00016438,3]
[402426281,1768675839195,-500.0,0.00016438,3]
[402426282,1768675839205,-500.0,0.00016438,3]
[402426283,1768675839215,-238.33114,0.00016438,3]
[402426284,1768675839225,-500.0,0.00016438,3]
[402426285,1768675839234,-500.0,0.00016438,3]
[402426286,1768675839243,-500.0,0.00016438,3]
[402426287,1768675839253,-500.0,0.00016438,3]
[402426288,1768675839263,-500.0,0.00016438,3]
[402426289,1768675839272,-500.0,0.00016438,3]
[402426290,1768675839281,-500.0,0.00016438,3]
[402426292,1768675839295,-500.0,0.00016438,3]
[402426293,1768675839305,-500.0,0.00016438,3]
[402426294,1768675839314,-500.0,0.00016438,3]
[402426295,1768675839324,-500.0,0.00016438,3]
[402426296,1768675839333,-500.0,0.00016438,3]
[402426297,1768675839343,-500.0,0.00016438,3]
[402426298,1768675839352,-660.71,0.00016438,3]
[402426299,1768675839362,-500.0,0.00016438,3]
[402426300,1768675839371,-717.86,0.00016438,3]
[402426301,1768675839380,-500.0,0.00016438,3]
[402426302,1768675839390,-500.0,0.00016438,3]
[402426304,1768675839400,-586.64,0.00016438,3]
[402426306,1768675839410,-1050.44,0.00016438,3]
[402426307,1768675839419,-500.0,0.00016438,3]
[402426308,1768675839428,-500.0,0.00016438,3]
[402426309,1768675839437,-500.0,0.00016438,3]
[402426310,1768675839446,-748.64,0.00016438,3]
[402426311,1768675839456,-500.0,0.00016438,3]
[402426312,1768675839465,-500.0,0.00016438,3]
[402426313,1768675839475,-500.0,0.00016438,3]
[402426314,1768675839485,-824.78,0.00016438,3]
[402426315,1768675839494,-500.0,0.00016438,3]
[402426316,1768675839504,-500.0,0.00016438,3]
[402426317,1768675839513,-500.0,0.00016438,3]
[402426318,1768675839522,-500.0,0.00016438,3]
[402426319,1768675839532,-500.0,0.00016438,3]
[402426320,1768675839542,-500.0,0.00016438,3]
[402426321,1768675839551,-500.0,0.00016438,3]
[402426322,1768675839561,-500.0,0.00016438,3]
[402426323,1768675839570,-500.0,0.00016438,3]
[402426324,1768675839580,-500.0,0.00016438,3]
[402426325,1768675839590,-500.0,0.00016438,3]
[402426326,1768675839599,-538.97966179,0.00016438,3]
[402426327,1768675839610,-500.0,0.00016438,3]
[402426328,1768675839621,-500.0,0.00016438,3]
[402426329,1768675839629,-629.37,0.00016438,3]
[402426330,1768675839638,-499.59360928,0.00016438,3]
[402426331,1768675839648,-618.03,0.00016438,3]
[402426332,1768675839658,-500.0,0.00016438,3]
[402426333,1768675839667,-500.0,0.00016438,3]
[402426334,1768675839676,-500.0,0.00016438,3]
[402426335,1768675839687,-500.0,0.00016438,3]
[402426336,1768675839696,-785.43,0.00016438,3]
[402426337,1768675839706,-1229.27,0.00016438,3]
[402426338,1768675839715,-500.0,0.00016438,3]
[402426339,1768675839725,-503.99,0.00016438,3]
[402426340,1768675839735,-500.0,0.00016438,3]
[402426341,1768675839744,-500.0,0.00016438,3]
[402426342,1768675839753,-500.0,0.00016438,3]
[402426343,1768675839763,-1332.53,0.00016438,3]
[402426344,1768675839772,-500.0,0.00016438,3]
[402426345,1768675839783,-500.0,0.00016438,3]
[402426346,1768675839792,-577.48511526,0.00016438,3]
[402426347,1768675839805,-500.0,0.00016438,3]
[402426348,1768675839814,-1544.82,0.00016438,3]
[402426349,1768675839823,-500.0,0.00016438,3]
[402426350,1768675839832,-500.0,0.00016438,3]
[402426351,1768675839842,-500.0,0.00016438,3]
[402426352,1768675839851,-500.0,0.00016438,3]
[402426353,1768675839860,-500.0,0.00016438,3]
[402426354,1768675839870,-500.0,0.00016438,3]
[402426355,1768675839879,-500.0,0.00016438,3]
[402426356,1768675839888,-500.0,0.00016438,3]
[402426357,1768675839897,-724.87,0.00016438,3]
[402426358,1768675839907,-500.0,0.00016438,3]
[402426359,1768675839916,-500.0,0.00016438,3]
[402426360,1768675839926,-674.95746037,0.00016438,3]
[402426361,1768675839935,-500.0,0.00016438,3]
[402426363,1768675839944,-686.6,0.00016438,3]
[402426365,1768675839954,-500.0,0.00016438,3]
[402426367,1768675839963,-1363.3,0.00016438,3]
[402426368,1768675839973,-500.0,0.00016438,3]
[402426370,1768675839982,-500.0,0.00016438,3]
[402426372,1768675839991,-500.0,0.00016438,3]
[402426374,1768675840001,-500.0,0.00016438,3]
[402426376,1768675840010,-500.0,0.00016438,3]
[402426378,1768675840019,-474.79408976,0.00016438,3]
[402426380,1768675840028,-500.0,0.00016438,3]
[402426382,1768675840037,-500.0,0.00016438,3]
[402426384,1768675840047,-154.82234284,0.00016438,3]
[402426386,1768675840057,-500.0,0.00016438,3]
[402426388,1768675840066,-500.0,0.00016438,3]
[402426390,1768675840076,-500.0,0.00016438,3]
[402426392,1768675840085,-1486.35,0.00016438,3]
[402426394,1768675840094,-500.0,0.00016438,3]
[402426396,1768675840104,-500.0,0.00016438,3]
[402426398,1768675840113,-500.0,0.00016438,3]
[402426400,1768675840123,-565.26,0.00016438,3]
[402426402,1768675840133,-500.0,0.00016438,3]
[402426404,1768675840145,-1421.58,0.00016438,3]
[402426406,1768675840155,-500.0,0.00016438,3]
[402426408,1768675840165,-500.0,0.00016438,3]
[402426410,1768675840173,-500.0,0.00016438,3]
[402426412,1768675840183,-895.06,0.00016438,3]
[402426414,1768675840192,-500.0,0.00016438,3]
[402426416,1768675840201,-646.41,0.00016438,3]
[402426418,1768675840210,-500.0,0.00016438,3]
[402426420,1768675840220,-500.0,0.00016438,3]
[402426422,1768675840230,-996.79,0.00016438,3]
[402426424,1768675840239,-764.09,0.00016438,3]
[402426426,1768675840247,-525.18,0.00016438,3]
[402426428,1768675840258,-716.74,0.00016438,3]
[402426430,1768675840267,-500.0,0.00016438,3]
[402426432,1768675840276,-1323.24,0.00016438,3]
[402426434,1768675840285,-500.0,0.00016438,3]
[402426435,1768675840297,-500.0,0.00016438,3]
[402426438,1768675840307,-770.45,0.00016438,3]
[402426439,1768675840318,-500.0,0.00016438,3]
[402426441,1768675840327,-500.0,0.00016438,3]
[402426443,1768675840336,-500.0,0.00016438,3]
[402426445,1768675840345,-500.0,0.00016438,3]
[402426447,1768675840355,-604.25264706,0.00016438,3]
[402426449,1768675840364,-500.0,0.00016438,3]
[402426451,1768675840373,-616.98850681,0.00016438,3]
[402426453,1768675840382,-1407.33,0.00016438,3]
[402426455,1768675840392,-632.04,0.00016438,3]
[402426456,1768675840402,-1247.83,0.00016438,3]
[402426457,1768675840411,-931.88,0.00016438,3]
[402426458,1768675840420,-500.0,0.00016438,3]
[402426459,1768675840429,-500.0,0.00016438,3]
[402426460,1768675840437,-1206.36,0.00016438,3]
[402426461,1768675840446,-505.92,0.00016438,3]
[402426462,1768675840456,-500.0,0.00016438,3]
[402426463,1768675840465,-500.0,0.00016438,3]
[402426464,1768675840474,-500.0,0.00016438,3]
[402426465,1768675840483,-500.0,0.00016438,3]
[402426467,1768675840492,-500.0,0.00016438,3]
[402426468,1768675840502,-538.41,0.00016438,3]
[402426470,1768675840512,-500.0,0.00016438,3]
[402426472,1768675840521,-500.0,0.00016438,3]
[402426474,1768675840530,-1150.55,0.00016438,3]
[402426476,1768675840539,-500.0,0.00016438,3]
[402426478,1768675840549,-500.0,0.00016438,3]
[402426480,1768675840558,-500.0,0.00016438,3]
[402426482,1768675840567,-989.09,0.00016438,3]
[402426484,1768675840576,-500.0,0.00016438,3]
[402426486,1768675840585,-500.0,0.00016438,3]
[402426488,1768675840594,-441.88906637,0.00016438,3]
[402426490,1768675840603,-500.0,0.00016438,3]
[402426491,1768675840616,-975.59,0.00016438,3]
[402426493,1768675840625,-500.0,0.00016438,3]
[402426495,1768675840634,-1116.5,0.00016438,3]
[402426497,1768675840644,-500.0,0.00016438,3]
[402426499,1768675840655,-500.0,0.00016438,3]
[402426501,1768675840665,-500.0,0.00016438,3]
[402426503,1768675840674,-500.0,0.00016438,3]
[402426505,1768675840685,-500.0,0.00016438,3]
[402426507,1768675840694,-500.0,0.00016438,3]
[402426509,1768675840704,-500.0,0.00016438,3]
[402426511,1768675840713,-500.0,0.00016438,3]
[402426513,1768675840723,-500.0,0.00016438,3]
[402426515,1768675840732,-1352.2,0.00016438,3]
[402426517,1768675840741,-500.0,0.00016438,3]
[402426519,1768675840751,-500.0,0.00016438,3]
[402426521,1768675840760,-500.0,0.00016438,3]
[402426523,1768675840769,-626.58,0.00016438,3]
[402426525,1768675840779,-500.0,0.00016438,3]
[402426527,1768675840788,-161.63217718,0.00016438,3]
[402426529,1768675840797,-1215.54,0.00016438,3]
[402426531,1768675840806,-500.0,0.00016438,3]
[402426533,1768675840816,-500.0,0.00016438,3]
[402426535,1768675840825,-537.14,0.00016438,3]
[402426537,1768675840834,-500.0,0.00016438,3]
[402426538,1768675840844,-870.79,0.00016438,3]